Cogmind - Beta 11.1 @@@ ROGUE MODE // 2022.07.05 @ 13:34:05 Player: lumberblack Result: Destroyed by C-35 Carver with Carbide Saw Performance ------------- Evolutions (7) 3500 Regions Visited (10) 2000 Robots Destroyed (1) 5 Value Destroyed (77) 77 Prototype IDs (2) 40 Alien Tech Used (0) 0 Bonus (2899) 2899 TOTAL SCORE: 8521 Bonus ------- Pacifist 2880 High Alert Combat Kills 19 Cogmind --------- Core Integrity 0/1300 Matter 295/300 Energy 99/100 System Corruption 5% Temperature Cool (0) Movement Core (50) Location -3/Armory Parts ------- > --- POWER (1) -------- (None) > --- PROPULSION (10) -- (None) > --- UTILITY (8) ------ Experimental Melee Analysis Suite Graphene Brace Improved Hacking Suite > --- WEAPON (2) ------- (None) > --- INVENTORY (5) ---- (None) Peak State ------------ > --- POWER ------------ (None) > --- PROPULSION ------- Armored Medium Treads Improved Heavy Treads Improved Heavy Treads > --- UTILITY ---------- Advanced Signal Interpreter Experimental Melee Analysis Suite Experimental Melee Analysis Suite Experimental Melee Analysis Suite Experimental Melee Analysis Suite Graphene Brace Graphene Brace Graphene Brace > --- WEAPON ----------- (None) > --- INVENTORY -------- (None) [Rating: 92] Favorites ----------- Power None Propulsion Improved Heavy Treads Treads Improved Heavy Treads Flight Unit Xenon Bombardment Thruster Utility Graphene Brace Device Graphene Brace Processor Advanced Signal Interpreter Hackware Advanced System Shield Weapon Lance Piercing Weapon Lance Build | -11 -10 -9 -8 -7 -6 -5 -4 -4 -3 -3 ------- Run | Scr Mat Mat Mat Fac Fac Fac Fac Ext Res Arm Slots Evolved 14 | . . 2 2 2 2 2 2 . 2 . Power . | . . . . . . . . . . . Propulsion 8 | . . 1 1 1 1 1 1 . 2 . Utility 6 | . . 1 1 1 1 1 1 . . . Weapon . | . . . . . . . . . . . Parts Attached 38 | . . . 4 . 1 3 13 1 13 3 Power . | . . . . . . . . . . . Engine . | . . . . . . . . . . . Core . | . . . . . . . . . . . Reactor . | . . . . . . . . . . . Propulsion 18 | . . . 4 . . . 8 1 4 1 Treads 13 | . . . . . . . 8 1 4 . Leg . | . . . . . . . . . . . Wheel . | . . . . . . . . . . . Hover . | . . . . . . . . . . . Flight 5 | . . . 4 . . . . . . 1 Utility 19 | . . . . . 1 2 5 . 9 2 Device 11 | . . . . . 1 1 3 . 4 2 Storage . | . . . . . . . . . . . Processor 5 | . . . . . . . 1 . 4 . Hackware 3 | . . . . . . 1 1 . 1 . Protection . | . . . . . . . . . . . Artifact . | . . . . . . . . . . . Weapon 1 | . . . . . . 1 . . . . Energy Gun . | . . . . . . . . . . . Energy Cannon . | . . . . . . . . . . . Ballistic Gun . | . . . . . . . . . . . Ballistic Cannon . | . . . . . . . . . . . Launcher . | . . . . . . . . . . . Special Weapon . | . . . . . . . . . . . Impact Weapon . | . . . . . . . . . . . Slashing Weapon . | . . . . . . . . . . . Piercing Weapon 1 | . . . . . . 1 . . . . Special Melee Weapon . | . . . . . . . . . . . Unidentified Prototypes 2 | . . . . . . . . . 2 . Parts Lost 20 | . . . 2 2 . 1 5 5 1 4 Power . | . . . . . . . . . . . Propulsion 15 | . . . 2 2 . . 4 3 1 3 Utility 5 | . . . . . . 1 1 2 . 1 Weapon . | . . . . . . . . . . . Highest Loss Streak 4 | . . . 2 2 . 1 4 3 1 4 To Critical Strikes . | . . . . . . . . . . . Average Slot Usage (%) 23 | . . . 16 7 1 7 40 36 35 27 Treads 7 | . . . . . . . 18 9 12 3 Flight 1 | . . . 16 7 . . . . . . Device 7 | . . . . . 1 1 12 15 13 7 Processor 2 | . . . . . . . 1 5 8 9 Hackware 3 | . . . . . . 3 6 6 . 4 Naked Turns 392 | . 50 87 25 85 121 24 . . . . Heaviest Build 3 | . . . . . 1 3 3 3 3 3 Greatest Support 300 | 3 3 3 18 12 3 3 300 3 27 5 Greatest Overweight (x) . | . . . . . . . . . . . Average Overweight (x) . | . . . . . . . . . . . Largest Inventory Capacity 5 | . 5 5 5 5 5 5 5 5 5 5 Average Capacity 5 | . 5 5 5 5 5 5 5 5 5 5 Most Carried 5 | . 5 5 5 5 5 5 5 1 1 . Average Carried 3 | . 5 5 5 5 5 5 3 1 . . Final Capacity 5 | 5 5 5 5 5 5 5 5 5 5 5 Final Carried 5 | 5 5 5 5 5 5 5 1 1 . . Class Distribution -------------------- 86% | Mutant 13% | Hacker-Mutant Dominant Class ---------------- Mutant | -10/Materials Mutant | -9/Materials Mutant | -8/Materials Mutant | -7/Factory Mutant | -6/Factory Mutant | -5/Factory Mutant | -4/Factory Mutant | -4/Extension Mutant | -3/Research Mutant | -3/Armory Resources | -11 -10 -9 -8 -7 -6 -5 -4 -4 -3 -3 ----------- Run | Scr Mat Mat Mat Fac Fac Fac Fac Ext Res Arm Matter Collected 434 | 200 . . 3 1 . . 117 3 87 23 Remotely . | . . . . . . . . . . . Salvage Created 74 | . . . . . . . 74 . . . Parts 2 | . . . . . . . 2 . . . Haulers Intercepted . | . . . . . . . . . . . Recyclers Shooed . | . . . . . . . . . . . Parts Field Recycled . | . . . . . . . . . . . Retrieved Matter . | . . . . . . . . . . . Parts Self-Destructed . | . . . . . . . . . . . Prevented . | . . . . . . . . . . . Kills | -11 -10 -9 -8 -7 -6 -5 -4 -4 -3 -3 ------- Run | Scr Mat Mat Mat Fac Fac Fac Fac Ext Res Arm Combat Hostiles Destroyed 1 | . . . . . . . 1 . . . Melee 1 | . . . . . . . 1 . . . Classes Destroyed 1 | . . . . . . . 1 . . . Hunter 1 | . . . . . . . 1 . . . Best Kill Streak 1 | . . . . . . . 1 . . . Combat Bots Only 1 | . . . . . . . 1 . . . Max Kills in Single Turn 1 | . . . . . . . 1 . . . Gunslinging . | . . . . . . . . . . . Exploded . | . . . . . . . . . . . Melee 1 | . . . . . . . 1 . . . Uniques/NPCs Destroyed . | . . . . . . . . . . . Combat | -11 -10 -9 -8 -7 -6 -5 -4 -4 -3 -3 -------- Run | Scr Mat Mat Mat Fac Fac Fac Fac Ext Res Arm Damage Taken 10056 | . 45 202 219 661 689 858 3412 1191 662 2117 Core 4433 | . 45 202 138 617 662 841 326 283 37 1282 Absorbed by Shields 49 | . . . . . . . . . . 49 Core Remaining (%) 50 | 100 82 49 74 11 22 15 . 47 . . Volleys Fired . | . . . . . . . . . . . Largest . | . . . . . . . . . . . Hottest . | . . . . . . . . . . . Shots Fired . | . . . . . . . . . . . Gun . | . . . . . . . . . . . Cannon . | . . . . . . . . . . . Launcher . | . . . . . . . . . . . Special . | . . . . . . . . . . . Kinetic . | . . . . . . . . . . . Thermal . | . . . . . . . . . . . Explosive . | . . . . . . . . . . . Electromagnetic . | . . . . . . . . . . . Robot Hit Streak . | . . . . . . . . . . . Robot Miss Streak . | . . . . . . . . . . . Penetration Max . | . . . . . . . . . . . Secondary Targets . | . . . . . . . . . . . Shots Hit Robots . | . . . . . . . . . . . Core Hits 1 | . . . . . . . . . . 1 Critical Kills . | . . . . . . . . . . . Critical Parts Destroyed . | . . . . . . . . . . . Critical Strikes . | . . . . . . . . . . . Melee Attacks . | . . . . . . . . . . . Impact . | . . . . . . . . . . . Slashing . | . . . . . . . . . . . Piercing . | . . . . . . . . . . . Sneak Attacks . | . . . . . . . . . . . Combat Hostiles . | . . . . . . . . . . . Follow-up Attacks . | . . . . . . . . . . . Damage Inflicted 129 | . . 39 . 3 23 9 5 . 4 46 Guns . | . . . . . . . . . . . Cannons . | . . . . . . . . . . . Explosions . | . . . . . . . . . . . Melee . | . . . . . . . . . . . Ramming 129 | . . 39 . 3 23 9 5 . 4 46 Kinetic . | . . . . . . . . . . . Thermal . | . . . . . . . . . . . Explosive . | . . . . . . . . . . . Electromagnetic . | . . . . . . . . . . . Impact . | . . . . . . . . . . . Slashing . | . . . . . . . . . . . Piercing . | . . . . . . . . . . . Highest Corruption 5 | . . 3 . . 2 . . . 5 5 Average Corruption 3 | . . 2 . . 2 . . . 4 5 Corruption Purged . | . . . . . . . . . . . Corruption Blocked . | . . . . . . . . . . . Effects 8 | . . 1 . . 1 . . . 3 3 Message Errors 1 | . . . . . . . . . 1 . Heat Flow Errors 3 | . . . . . . . . . 2 1 Energy Discharges 1 | . . 1 . . . . . . . . Parts Rejected 1 | . . . . . . . . . . 1 Data Loss (minor) 1 | . . . . . 1 . . . . . Alerts 1 | . . . . . . . . . . 1 Overload Shots . | . . . . . . . . . . . Overflow Damage . | . . . . . . . . . . . Projectiles . | . . . . . . . . . . . Explosions . | . . . . . . . . . . . Melee . | . . . . . . . . . . . Knockbacks 1 | . . . . . . . . . . 1 Impact 1 | . . . . . . . . . . 1 Kinetic . | . . . . . . . . . . . Secondary . | . . . . . . . . . . . Self-Inflicted Damage 56 | . . 18 . 1 10 4 . . 2 21 Shots . | . . . . . . . . . . . Rammed 35 | . . 7 . 1 6 2 11 . 1 7 Targets Rammed 36 | . . 7 . 1 6 2 12 . 1 7 Kicked . | . . . . . . . . . . . Crushed 1 | . . . . . . . 1 . . . Highest Temperature 231 | . . . . . . . . . 231 217 Average Temperature 103 | . . . . . . . . . 98 110 Received Heat Transfer 852 | . . 48 36 165 102 27 63 165 9 237 Siege Activations . | . . . . . . . . . . . Robots Corrupted . | . . . . . . . . . . . Combat Hostiles . | . . . . . . . . . . . Parts Fried . | . . . . . . . . . . . Impact Corruptions . | . . . . . . . . . . . Robots Melted . | . . . . . . . . . . . Combat Hostiles . | . . . . . . . . . . . Parts Melted . | . . . . . . . . . . . Heat Transferred . | . . . . . . . . . . . Parts Sabotaged 4 | . . . . . . . . . . 4 Parts Stolen . | . . . . . . . . . . . Parts Stripped . | . . . . . . . . . . . Power Chain Reactions 1 | . . . . . . . 1 . . . Missiles Intercepted . | . . . . . . . . . . . Alert | -11 -10 -9 -8 -7 -6 -5 -4 -4 -3 -3 ------- Run | Scr Mat Mat Mat Fac Fac Fac Fac Ext Res Arm Peak Influence 577 | . 37 66 77 121 82 269 577 245 230 417 Initial 215 | . . 15 27 13 32 24 131 215 110 115 Average 167 | . 13 37 36 35 34 121 340 218 142 209 Maximum Alert Level 2 | . . . . . . 1 2 1 1 2 Low Security (%) 66 | . 100 100 100 100 100 68 25 . 92 63 Level 1 22 | . . . . . . 31 37 100 7 28 Level 2 10 | . . . . . . . 36 . . 7 Level 3 . | . . . . . . . . . . . Level 4 . | . . . . . . . . . . . Level 5 . | . . . . . . . . . . . High Security . | . . . . . . . . . . . Max Security . | . . . . . . . . . . . Squads Dispatched 28 | . 1 2 2 3 3 . 6 1 4 6 Investigation 13 | . 1 1 1 1 . . 4 1 . 4 Extermination 1 | . . . . . . . . . 1 . Reinforcement 14 | . . 1 1 2 3 . 2 . 3 2 Assault . | . . . . . . . . . . . Garrison . | . . . . . . . . . . . Intercept . | . . . . . . . . . . . Searches Triggered . | . . . . . . . . . . . Construction Impeded 1 | . . 1 . . . . . . . . Haulers Reinforced 1 | . . . . . . . . . 1 . Active Scanning Responses . | . . . . . . . . . . . Cargo Convoy Interrupts . | . . . . . . . . . . . Stealth | -11 -10 -9 -8 -7 -6 -5 -4 -4 -3 -3 --------- Run | Scr Mat Mat Mat Fac Fac Fac Fac Ext Res Arm Distress Signals 8 | . 2 . 3 . . . . . 1 2 Communications Jammed . | . . . . . . . . . . . Distress Signals . | . . . . . . . . . . . Times Spotted 176 | . 7 12 14 13 13 17 34 9 15 42 Peak Tracking Total 29 | . 7 10 18 9 6 7 11 10 6 29 Tactical Retreats 25 | . 1 . . 1 2 6 10 . 3 2 Traps | -11 -10 -9 -8 -7 -6 -5 -4 -4 -3 -3 ------- Run | Scr Mat Mat Mat Fac Fac Fac Fac Ext Res Arm Traps Triggered 6 | . . 1 . . . . 1 1 2 1 Indirectly . | . . . . . . . . . . . Trap Hack Attempts . | . . . . . . . . . . . Triggered . | . . . . . . . . . . . Disarmed . | . . . . . . . . . . . Reprogrammed . | . . . . . . . . . . . Reused . | . . . . . . . . . . . Traps Extracted . | . . . . . . . . . . . Installed . | . . . . . . . . . . . Triggered . | . . . . . . . . . . . Machines | -11 -10 -9 -8 -7 -6 -5 -4 -4 -3 -3 ---------- Run | Scr Mat Mat Mat Fac Fac Fac Fac Ext Res Arm Machines Disabled . | . . . . . . . . . . . Max in Single Turn . | . . . . . . . . . . . Machines Sabotaged . | . . . . . . . . . . . Garrisons Compromised . | . . . . . . . . . . . Overloaded Fab Kills 11 | . . . . . . . 8 . . 3 Hacking | -11 -10 -9 -8 -7 -6 -5 -4 -4 -3 -3 --------- Run | Scr Mat Mat Mat Fac Fac Fac Fac Ext Res Arm Machines Accessed 32 | . 2 4 2 4 3 1 9 . 1 6 Terminals 25 | . 2 4 2 4 3 1 7 . 1 1 Fabricators 7 | . . . . . . . 2 . . 5 Repair Stations . | . . . . . . . . . . . Recycling Units . | . . . . . . . . . . . Scanalyzers . | . . . . . . . . . . . Garrison Access . | . . . . . . . . . . . Total Hacks 87 | . 8 15 9 15 7 2 22 . 1 8 Successful 37 | . 5 3 5 6 5 . 9 . . 4 Failed 50 | . 3 12 4 9 2 2 13 . 1 4 Catastrophic 14 | . . 5 1 1 1 . 3 . 1 2 Database Lockouts . | . . . . . . . . . . . Manual 62 | . 8 12 6 12 4 2 12 . . 6 Terminals 78 | . 8 15 9 15 7 2 20 . 1 1 Fabricators 9 | . . . . . . . 2 . . 7 Repair Stations . | . . . . . . . . . . . Recycling Units . | . . . . . . . . . . . Scanalyzers . | . . . . . . . . . . . Garrison Access . | . . . . . . . . . . . Terminal Hacks 23 | . 4 1 5 4 4 . 5 . . . Open Door 1 | . . . . . . . 1 . . . Open DSF 2 | . . . . . . . 2 . . . Level Access Points 4 | . 1 . 1 1 1 . . . . . Terminal Index 7 | . 1 1 2 1 1 . 1 . . . Unreport Threat 8 | . 2 . 2 2 2 . . . . . Zone Layout 1 | . . . . . . . 1 . . . Fabricator Hacks 1 | . . . . . . . . . . 1 Build 1 | . . . . . . . . . . 1 Repair Station Hacks . | . . . . . . . . . . . Recycling Unit Hacks . | . . . . . . . . . . . Scanalyzer . | . . . . . . . . . . . Garrison Access Hacks . | . . . . . . . . . . . Unauthorized Hacks 13 | . 1 2 . 2 1 . 4 . . 3 Terminals 8 | . 1 2 . 2 1 . 2 . . . Assimilate 1 | . . 1 . . . . . . . . Botnet 7 | . 1 1 . 2 1 . 2 . . . Fabricators 5 | . . . . . . . 2 . . 3 Overload 5 | . . . . . . . 2 . . 3 Repair Stations . | . . . . . . . . . . . Recycling Units . | . . . . . . . . . . . Scanalyzers . | . . . . . . . . . . . Garrison Access . | . . . . . . . . . . . Data Cores Recovered . | . . . . . . . . . . . Used . | . . . . . . . . . . . Hacking Detections 26 | . 2 4 2 4 3 1 6 . 1 3 Full Trace Events 11 | . 1 4 2 1 . . 2 . . 1 Feedback Events . | . . . . . . . . . . . Feedback Blocked . | . . . . . . . . . . . Robot Schematics Acquired . | . . . . . . . . . . . Robots Built . | . . . . . . . . . . . Authchips . | . . . . . . . . . . . Time . | . . . . . . . . . . . Total Robot Build Rating . | . . . . . . . . . . . Part Schematics Acquired . | . . . . . . . . . . . Parts Built 2 | . . . . . . . . . . 2 Authchips . | . . . . . . . . . . . Time 64 | . . . . . . . . . . 64 Total Part Build Rating 16 | . . . . . . . . . . 16 Parts Repaired . | . . . . . . . . . . . Time . | . . . . . . . . . . . Parts Recycled . | . . . . . . . . . . . Recycled Matter . | . . . . . . . . . . . Retrieved Matter . | . . . . . . . . . . . Retrieved Components . | . . . . . . . . . . . Parts Scanalyzed . | . . . . . . . . . . . Part Schematics Acquired . | . . . . . . . . . . . Parts Damaged . | . . . . . . . . . . . Bothacking | -11 -10 -9 -8 -7 -6 -5 -4 -4 -3 -3 ------------ Run | Scr Mat Mat Mat Fac Fac Fac Fac Ext Res Arm Used RIF Installer . | . . . . . . . . . . . Robots Hacked . | . . . . . . . . . . . Non-combat . | . . . . . . . . . . . Combat . | . . . . . . . . . . . Robot Hacks Applied . | . . . . . . . . . . . Relay Couplers Released . | . . . . . . . . . . . Fabnet Peak Effective % . | . . . . . . . . . . . Robots Rewired . | . . . . . . . . . . . Allies Hacked . | . . . . . . . . . . . Hacks Repelled . | . . . . . . . . . . . Allies | -11 -10 -9 -8 -7 -6 -5 -4 -4 -3 -3 -------- Run | Scr Mat Mat Mat Fac Fac Fac Fac Ext Res Arm Total Allies 1 | . . 1 . . . . . . . . Largest Group 1 | . . 1 . . . . . . . . Highest-Rated Group 10 | . . 10 . . . . . . . . Highest-Rated Ally 10 | . . 10 . . . . . . . . Total Orders . | . . . . . . . . . . . Ally Attacks . | . . . . . . . . . . . Total Damage . | . . . . . . . . . . . Kills . | . . . . . . . . . . . Allies Corrupted . | . . . . . . . . . . . Allies Melted . | . . . . . . . . . . . Intel | -11 -10 -9 -8 -7 -6 -5 -4 -4 -3 -3 ------- Run | Scr Mat Mat Mat Fac Fac Fac Fac Ext Res Arm Robot Analysis Total . | . . . . . . . . . . . Derelict Logs Recovered . | . . . . . . . . . . . Drone Launches . | . . . . . . . . . . . Drone Recoveries . | . . . . . . . . . . . Exploration | -11 -10 -9 -8 -7 -6 -5 -4 -4 -3 -3 ------------- Run | Scr Mat Mat Mat Fac Fac Fac Fac Ext Res Arm Turns Passed 1699 | . 50 87 71 190 180 170 471 101 260 119 Spaces Moved 3252 | 1 100 159 158 450 341 325 836 198 474 210 Core 2818 | 1 100 159 48 170 341 325 831 198 473 172 Treads 6 | . . . . . . . 5 . 1 . Legs . | . . . . . . . . . . . Wheels . | . . . . . . . . . . . Hover . | . . . . . . . . . . . Flight 428 | . . . 110 280 . . . . . 38 Fastest Speed 34 | 50 50 50 34 37 50 50 50 50 50 35 Average Speed 48 | 50 50 50 40 42 50 50 50 50 50 47 Slowest Speed 170 | 50 50 50 50 50 50 50 160 50 170 50 Overloaded Moves . | . . . . . . . . . . . Propulsion Burnouts . | . . . . . . . . . . . Robots Hopped 8 | . . . 5 2 . . . . . 1 Cave-ins Triggered . | . . . . . . . . . . . Exploration Rate (%) 24 | 2 32 26 30 21 14 19 31 43 19 32 Regions Visited 10 Branch Regions 2 Pre-discovered Areas . | . . . . . . . . . . . Known Exits Taken 7 | . 1 . 1 1 1 . 1 1 1 . Unknown Exits Taken 3 | 1 . 1 . . . 1 . . . . Scrap Searched . | . . . . . . . . . . . Spaces Dug . | . . . . . . . . . . . Terrain Destroyed . | . . . . . . . . . . . Melee . | . . . . . . . . . . . Projectile . | . . . . . . . . . . . AOE . | . . . . . . . . . . . Terrain Rammed . | . . . . . . . . . . . Walls Destroyed . | . . . . . . . . . . . Machines Disabled . | . . . . . . . . . . . Actions | -11 -10 -9 -8 -7 -6 -5 -4 -4 -3 -3 --------- Run | Scr Mat Mat Mat Fac Fac Fac Fac Ext Res Arm Total 3335 | . 99 165 156 448 349 330 873 198 490 227 Wait 5 | . . . . . 2 . 3 . . . Move 3229 | . 99 158 149 446 340 324 835 197 473 208 Hop 6 | . . . 3 2 . . . . . 1 Pick Up 4 | . . . . . . . 4 . . . Fast Attach 34 | . . . 4 . 1 3 10 1 12 3 Attach 4 | . . . . . . . 3 . 1 . Detach . | . . . . . . . . . . . Swap . | . . . . . . . . . . . Drop 10 | . . . . . . 1 6 . 3 . Fire . | . . . . . . . . . . . Melee . | . . . . . . . . . . . Ram 23 | . . 7 . . 6 2 . . 1 7 Kick . | . . . . . . . . . . . Crush 12 | . . . . . . . 12 . . . Escape Stasis 8 | . . . . . . . . . . 8 Rewire . | . . . . . . . . . . . Trap . | . . . . . . . . . . . Miscellaneous . | . . . . . . . . . . . Route ------- -11/Scrapyard -10/Materials (discovered 3 exits: *Mat x3) -9/Materials (discovered 2 exits: *Mat / [*Min]) -8/Materials (discovered 3 exits: *Fac x3) -7/Factory (discovered 4 exits: *Fac x4) -6/Factory (discovered 4 exits: *Fac x4) -5/Factory -4/Factory -4/Extension (discovered 2 exits: *Res / [*Cet]) -3/Research -3/Armory History --------- Turn | Location | Event 1 | -11/Scrapyard | Released all parts (6) 1 | -11/Scrapyard | Discovered new exit (range 0) 1 | -11/Scrapyard | Entered Materials 34 | -10/Materials | Identified exit to Materials 51 | -10/Materials | Entered another Materials area 51 | -9/Materials | Evolved 2 slots: Propulsion x1, Utility x1 87 | -9/Materials | Discovered new exit (range 15) 130 | -9/Materials | Discovered new exit (range 16) 137 | -9/Materials | Core integrity fell below 50% 138 | -9/Materials | Entered another Materials area 138 | -8/Materials | Evolved 2 slots: Propulsion x1, Utility x1 193 | -8/Materials | Identified exit to Factory 209 | -8/Materials | Entered Factory 209 | -7/Factory | Evolved 2 slots: Propulsion x1, Utility x1 303 | -7/Factory | Build established: Mutant 335 | -7/Factory | Identified exit to Factory 371 | -7/Factory | Core integrity fell below 50% 399 | -7/Factory | Core integrity fell below 20% 399 | -7/Factory | Entered another Factory area 399 | -6/Factory | Evolved 2 slots: Propulsion x1, Utility x1 475 | -6/Factory | Core integrity fell below 50% 477 | -6/Factory | Identified exit to Factory 579 | -6/Factory | Entered another Factory area 579 | -5/Factory | Evolved 2 slots: Propulsion x1, Utility x1 665 | -5/Factory | Core integrity fell below 50% 691 | -5/Factory | Core integrity fell below 20% 742 | -5/Factory | Discovered new exit (range 16) 749 | -5/Factory | Entered another Factory area 749 | -4/Factory | Evolved 2 slots: Propulsion x1, Utility x1 996 | -4/Factory | Spotted B-86 Titan 1167 | -4/Factory | Lost 4 parts (3n1u) 1218 | -4/Factory | Discovered new exit (range 6) 1219 | -4/Factory | Identified exit to Extension 1220 | -4/Factory | Entered Extension 1257 | -4/Extension | Spotted B-86 Titan 1261 | -4/Extension | Spotted B-86 Titan 1305 | -4/Extension | Lost 3 parts (2n1u) 1312 | -4/Extension | Discovered new exit (range 15) 1312 | -4/Extension | Discovered new exit (range 15) 1317 | -4/Extension | Core integrity fell below 50% 1320 | -4/Extension | Identified exit to Research 1321 | -4/Extension | Entered Research 1321 | -3/Research | Evolved 2 slots: Propulsion x2 1468 | -3/Research | Found Prototype Processor 1468 | -3/Research | Identified Exp. Melee Analysis Suite 1470 | -3/Research | Found Exp. Melee Analysis Suite 1473 | -3/Research | Found Faulty Exp. Melee Analysis Suite 1475 | -3/Research | Found Exp. Melee Analysis Suite 1577 | -3/Research | Discovered new exit (range 8) 1580 | -3/Research | Identified exit to Armory 1581 | -3/Research | Entered Armory 1615 | -3/Armory | Spotted B-86 Titan 1656 | -3/Armory | Fabricated Antimissile System? 1659 | -3/Armory | Core integrity fell below 50% 1679 | -3/Armory | Core integrity fell below 20% 1700 | -3/Armory | Destroyed by C-35 Carver with Carbide Saw Last Messages --------------- 01678_ G-67 Veteran system terminally corrupted. 01678_ Cesium-ion Thruster destroyed. 01681_ System corrupted: IFF burst signal emitted. 01682_ Connecting with Fabricator... >>Force(Overload) EM_IMPRINTER_OVERLOAD 01682_ ALERT: Suspicious activity at Fabricator A008. Dispatching Investigation squad. 01682_ Fabricator disabled. 01683_ ALERT: Suspicious intruders detected, dispatching Cutter reinforcements to area. 01684_ P-80 Master resets D-63 Destroyer, system corruption cleaned. 01686_ Fabricator zaps D-63 Destroyer with an electromagnetic arc. 01686_ P-80 Master resets D-63 Destroyer, system corruption cleaned. 01690_ Slammed into C-35 Carver. 01694_ Slug penetrates Wall. 01695_ Slug penetrates Fabricator. 01699_ Connecting with Fabricator... 01699_ ALERT: Suspicious activity at Fabricator A003. Dispatching Investigation squad. Map ----- +----------------------------------------------------+ | ?????????????????????????????????????????????????? | | ?????????????????????????????????????????????????? | | ?????????????????????????????????????????????????? | | ?????????????????????????????????????????????????? | | ?????????????????????????????????????????????????? | | ?????????????????????????????????????????????????? | | ?????????????????????????????????????????????????? | | ?????????????????????????????????????????????????? | | ????????????????????????????????? ??????????????? | | ????????????????????????????????? ??????????????? | | ????????????????????????????????? ??????????????? | | ????????????????????????????????# ??????????????? | | ????????????????????????????????# ??????????????? | | ????????????????????????????????# ??????????????? | | ????????????????????????????????# #?????????????? | | ????????????????????????????????# #?????????????? | | ????????????????????????????????+ ?????????????? | | ????????????????????????????????# ?????????????? | | ????????????????????????????????# #?????????????? | | ????????????????????????????????# #####??##?????? | | ????????????????????????????????# # ??? #?????? | | ????????????????????????????????# # "???? #?????? | | ????????????????????????????????# / "???? #?????? | | ????????????????????#######?????# # "???? #?????? | | ????????????????????# #?????# # """"" #?????? | | ?????????????????#### ""@#?????+ # #?????? | | ????????????????? "" """c#?????# "#####+##?????# | | ?????????????????""" "F c#+#??## "#???# #????? | | ????????????????#"" """ # #### #???# ##??? ? | | ?????????????????""F" """ c #?### #?? ?? | | ??????????????????""" """ # #?# ##? #?? | | ???????????????????"" ###### #?# # #?? | | ???????????????????## """ #????### ### # #?? | | ????????????????????# """ #??????#H ## ##? | | ????????????????????# """ #??????# """ +? | | ????????????????????# #??????# #"F ##? | | ????????????????????#?#####??????# #" #?? | | ?????????????????????????????????# #"" #?? | | ?????????????????????????????????# #""" !! #?? | | ?????????????????????????????????# #?? | | ?????????????????????????????????# # #?? | | ?????????????????????????????????# =% #?? | | ?????????????????????????????????# #?? | | ?????????????????????????????????+ "" #?? | | ?????????????????????????????????# """ !! #?? | | ?????????????????????????????????# "F ! #?? | | ?????????????????????????????????# """ ! #?? | | ?????????????????????????????????# """ #?? | | ?????????????????????????????????# """ #?? | | ?????????????????????????????????# ### | +----------------------------------------------------+ Best States ------------- Heat Dissipation 46 Energy Generation 5 Energy Capacity 100 Matter Stores 300 Matter Capacity 300 Sight Range 16 Terrain Scan Density 10 Jamming Range 12 Evasion (%) 62 Melee Accuracy 24 Recoil Reduction 8 Offensive Hacking 12 Defensive Hacking 26 Item Schematics ----------------- None Robot Schematics ------------------ None Fabricated ------------ Antimissile System | x2 | -3/Armory | Preloaded Alien Tech Used ----------------- None Achievements -------------- None Challenges ------------ None Game ------ Seed BombContainmentKatana Manual? 0 Play Time 00:35:01 Cumulative 381.7 hours Start 2022.07.05 @ 13:01:51 End 2022.07.05 @ 13:34:05 Sessions 1 Manual Loads 0 Difficulty Rogue Special Mode None Game No. 358 Rogue 358 Adventurer 0 Explorer 0 Win Type - Total 8 Types 5/1/2/0/0/0/0/0/0 Lore% 56 Gallery% 76 Achievement% 65 Wizard Run 0 Options --------- ASCII 0 Keyboard 0 Movement Numpad Keybinds 0 Fullscreen 2 Font 18/TerminusBold Map View 76x50 Tactical HUD 1 Map Filters NONE Filters NONE Steam 1 RUN: 1bd24138-0b6d-472b-8df1-426037e249fb